[Event "Early-Titled-Tuesday-Blitz-September-26-2023"]
[Site "Chess.com"]
[Date "2023.09.26"]
[Round "1"]
[White "CalinGheorghiu"]
[Black "jens1102"]
[Result "1-0"]
[WhiteElo "2357"]
[BlackElo "2627"]
[TimeControl "180+1"]
[EndTime "8:08:47 PDT"]
[Termination "CalinGheorghiu won by checkmate"]

1. e4 {[%clk 0:02:50.3]} 1... e5 {[%clk 0:02:59]} 2. Nf3 {[%clk 0:02:49.3]} 2...
Nc6 {[%clk 0:02:59.4]} 3. Bb5 {[%clk 0:02:48.4]} 3... Nf6 {[%clk 0:02:56.1]} 4.
d3 {[%clk 0:02:44.9]} 4... Bc5 {[%clk 0:02:54.7]} 5. O-O {[%clk 0:02:39.2]} 5...
d6 {[%clk 0:02:48.7]} 6. c3 {[%clk 0:02:29.2]} 6... O-O {[%clk 0:02:47.7]} 7.
Bg5 {[%clk 0:02:24.2]} 7... h6 {[%clk 0:02:42.9]} 8. Bh4 {[%clk 0:02:23.5]} 8...
g5 {[%clk 0:02:37.8]} 9. Bg3 {[%clk 0:02:19]} 9... Bg4 {[%clk 0:02:37.5]} 10.
Nbd2 {[%clk 0:02:14.4]} 10... Ne7 {[%clk 0:02:36.4]} 11. Re1 {[%clk 0:02:12.6]}
11... Ng6 {[%clk 0:02:35.8]} 12. Nf1 {[%clk 0:02:12.8]} 12... c6 {[%clk
0:02:27.6]} 13. Ba4 {[%clk 0:02:10.2]} 13... h5 {[%clk 0:02:22.4]} 14. h3 {[%clk
0:02:04.7]} 14... h4 {[%clk 0:02:00.3]} 15. hxg4 {[%clk 0:01:53.1]} 15... hxg3
{[%clk 0:01:59.9]} 16. Nxg3 {[%clk 0:01:53.7]} 16... Nxg4 {[%clk 0:01:59.6]} 17.
d4 {[%clk 0:01:54.3]} 17... Bb6 {[%clk 0:01:59.1]} 18. Bb3 {[%clk 0:01:39.8]}
18... Nf4 {[%clk 0:01:54.5]} 19. Nf5 {[%clk 0:01:19.3]} 19... Qf6 {[%clk
0:01:54.2]} 20. Nxe5 {[%clk 0:01:10]} 20... Nxe5 {[%clk 0:01:34.4]} 21. dxe5
{[%clk 0:01:06.2]} 21... dxe5 {[%clk 0:01:34.4]} 22. Qg4 {[%clk 0:01:01.7]}
22... Rad8 {[%clk 0:01:20.8]} 23. g3 {[%clk 0:00:53.3]} 23... Nd3 {[%clk
0:01:18.5]} 24. Re2 {[%clk 0:00:51.8]} 24... Nxf2 {[%clk 0:01:07]} 25. Rxf2
{[%clk 0:00:46.6]} 25... Rd2 {[%clk 0:01:07]} 26. Rf1 {[%clk 0:00:42.8]} 26...
Rxf2 {[%clk 0:00:50.9]} 27. Rxf2 {[%clk 0:00:42.4]} 27... Bxf2+ {[%clk
0:00:40.8]} 28. Kxf2 {[%clk 0:00:41.6]} 28... Rd8 {[%clk 0:00:41.7]} 29. Ke2
{[%clk 0:00:38.3]} 29... a5 {[%clk 0:00:40.7]} 30. Qh5 {[%clk 0:00:35.6]} 30...
Rd7 {[%clk 0:00:39.1]} 31. Nh6+ {[%clk 0:00:31.6]} 31... Kg7 {[%clk 0:00:39.2]}
32. Ng4 {[%clk 0:00:31.7]} 32... Qg6 {[%clk 0:00:32.7]} 33. Qxg6+ {[%clk
0:00:31.1]} 33... fxg6 {[%clk 0:00:33.6]} 34. Ke3 {[%clk 0:00:29.8]} 34... Re7
{[%clk 0:00:32.8]} 35. a4 {[%clk 0:00:29.2]} 35... b6 {[%clk 0:00:32.9]} 36. Bc4
{[%clk 0:00:28.7]} 36... Re8 {[%clk 0:00:32.6]} 37. Ba6 {[%clk 0:00:24.8]} 37...
Re7 {[%clk 0:00:32.5]} 38. Bc4 {[%clk 0:00:22.6]} 38... Re8 {[%clk 0:00:32.2]}
39. Nf2 {[%clk 0:00:22.5]} 39... Kf6 {[%clk 0:00:31.1]} 40. Bb3 {[%clk
0:00:19.4]} 40... Re7 {[%clk 0:00:28.8]} 41. Bc4 {[%clk 0:00:19.1]} 41... Re8
{[%clk 0:00:29.1]} 42. b4 {[%clk 0:00:19.8]} 42... Re7 {[%clk 0:00:26.2]} 43. b5
{[%clk 0:00:18.6]} 43... cxb5 {[%clk 0:00:26.3]} 44. Bxb5 {[%clk 0:00:18.9]}
44... Rc7 {[%clk 0:00:24.7]} 45. c4 {[%clk 0:00:19.1]} 45... Ke6 {[%clk
0:00:23.7]} 46. Nd1 {[%clk 0:00:19]} 46... Rc8 {[%clk 0:00:22.6]} 47. Nc3 {[%clk
0:00:19.4]} 47... Rh8 {[%clk 0:00:21.8]} 48. Nd5 {[%clk 0:00:19.9]} 48... Rh3
{[%clk 0:00:22]} 49. Kf3 {[%clk 0:00:18.4]} 49... Kd6 {[%clk 0:00:22.4]} 50.
Nxb6 {[%clk 0:00:18.4]} 50... Kc5 {[%clk 0:00:22.8]} 51. Nd7+ {[%clk 0:00:18.9]}
51... Kd4 {[%clk 0:00:23.3]} 52. c5 {[%clk 0:00:18.7]} 52... Rh1 {[%clk
0:00:23.1]} 53. c6 {[%clk 0:00:18.9]} 53... Rc1 {[%clk 0:00:23.2]} 54. Nf6
{[%clk 0:00:18.9]} 54... g4+ {[%clk 0:00:19.6]} 55. Kxg4 {[%clk 0:00:19]} 55...
Ke3 {[%clk 0:00:19.1]} 56. c7 {[%clk 0:00:18.6]} 56... Kd4 {[%clk 0:00:16.3]}
57. Nd5 {[%clk 0:00:16.8]} 57... Kxe4 {[%clk 0:00:16.4]} 58. Bd7 {[%clk
0:00:12.6]} 58... Kxd5 {[%clk 0:00:16.4]} 59. c8=Q {[%clk 0:00:12.7]} 59... Rxc8
{[%clk 0:00:16.1]} 60. Bxc8 {[%clk 0:00:13.1]} 60... e4 {[%clk 0:00:14.8]} 61.
Kg5 {[%clk 0:00:13]} 61... e3 {[%clk 0:00:13.9]} 62. Ba6 {[%clk 0:00:12.1]}
62... Ke4 {[%clk 0:00:11.6]} 63. Be2 {[%clk 0:00:11.8]} 63... Kd4 {[%clk
0:00:08.9]} 64. Kxg6 {[%clk 0:00:11.5]} 64... Kc3 {[%clk 0:00:09.8]} 65. g4
{[%clk 0:00:11.7]} 65... Kd2 {[%clk 0:00:10.1]} 66. Bb5 {[%clk 0:00:12.1]} 66...
e2 {[%clk 0:00:09.7]} 67. Bxe2 {[%clk 0:00:12.7]} 67... Kxe2 {[%clk 0:00:10.6]}
68. Kf5 {[%clk 0:00:13]} 68... Kd3 {[%clk 0:00:11.5]} 69. g5 {[%clk 0:00:13.6]}
69... Kc4 {[%clk 0:00:12.4]} 70. g6 {[%clk 0:00:14.2]} 70... Kb4 {[%clk
0:00:13.3]} 71. g7 {[%clk 0:00:14.9]} 71... Kxa4 {[%clk 0:00:14.2]} 72. g8=Q
{[%clk 0:00:15.4]} 72... Ka3 {[%clk 0:00:14.8]} 73. Qc4 {[%clk 0:00:15.6]} 73...
a4 {[%clk 0:00:15.7]} 74. Qc3+ {[%clk 0:00:15.9]} 74... Ka2 {[%clk 0:00:16.1]}
75. Qc2+ {[%clk 0:00:16.3]} 75... Ka3 {[%clk 0:00:16.4]} 76. Qc1+ {[%clk
0:00:16.5]} 76... Ka2 {[%clk 0:00:16.7]} 77. Qc3 {[%clk 0:00:16.5]} 77... a3
{[%clk 0:00:17.6]} 78. Qb4 {[%clk 0:00:16.6]} 78... Ka1 {[%clk 0:00:17.3]} 79.
Qxa3+ {[%clk 0:00:17.2]} 79... Kb1 {[%clk 0:00:18.2]} 80. Qb3+ {[%clk
0:00:17.5]} 80... Ka1 {[%clk 0:00:18.7]} 81. Qg3 {[%clk 0:00:17.5]} 81... Kb1
{[%clk 0:00:19.1]} 82. Ke4 {[%clk 0:00:18]} 82... Ka1 {[%clk 0:00:20]} 83. Kd3
{[%clk 0:00:18.3]} 83... Kb2 {[%clk 0:00:20.6]} 84. Qf2+ {[%clk 0:00:18.6]}
84... Kb3 {[%clk 0:00:21]} 85. Qc2+ {[%clk 0:00:19.2]} 85... Kb4 {[%clk
0:00:21.9]} 86. Kd4 {[%clk 0:00:19]} 86... Ka3 {[%clk 0:00:22.1]} 87. Qb1 {[%clk
0:00:18.7]} 87... Ka4 {[%clk 0:00:22.4]} 88. Kc4 {[%clk 0:00:19.4]} 88... Ka3
{[%clk 0:00:23.3]} 89. Qb3# {[%clk 0:00:19.6]} 1-0

[Event "Early-Titled-Tuesday-Blitz-September-26-2023"]
[Site "Chess.com"]
[Date "2023.09.26"]
[Round "1"]
[White "CarlosjPineror"]
[Black "ChessArchitect64"]
[Result "1-0"]
[WhiteElo "2593"]
[BlackElo "2252"]
[TimeControl "180+1"]
[EndTime "8:08:48 PDT"]
[Termination "CarlosjPineror won by checkmate"]

1. e4 {[%clk 0:02:59.6]} 1... e5 {[%clk 0:02:47.2]} 2. Nf3 {[%clk 0:02:58.9]}
2... Nf6 {[%clk 0:02:46]} 3. d4 {[%clk 0:02:52.6]} 3... Nxe4 {[%clk 0:02:36.3]}
4. dxe5 {[%clk 0:02:51.1]} 4... d5 {[%clk 0:02:34.7]} 5. Bd3 {[%clk 0:02:43.7]}
5... Nc5 {[%clk 0:02:25.8]} 6. Be2 {[%clk 0:02:42.9]} 6... Be7 {[%clk
0:02:24.3]} 7. O-O {[%clk 0:02:42.1]} 7... O-O {[%clk 0:02:20.9]} 8. Be3 {[%clk
0:02:35.9]} 8... c6 {[%clk 0:02:17.4]} 9. Nd4 {[%clk 0:02:19.1]} 9... f5 {[%clk
0:01:51.7]} 10. f4 {[%clk 0:02:10.8]} 10... Ne6 {[%clk 0:01:51]} 11. c3 {[%clk
0:02:08.8]} 11... Nxd4 {[%clk 0:01:50.9]} 12. cxd4 {[%clk 0:02:07.8]} 12... Be6
{[%clk 0:01:51.2]} 13. Nc3 {[%clk 0:02:05.6]} 13... Nd7 {[%clk 0:01:51]} 14. Rc1
{[%clk 0:02:00.5]} 14... b5 {[%clk 0:01:48.7]} 15. Nb1 {[%clk 0:01:54.9]} 15...
Qb6 {[%clk 0:01:47.4]} 16. Bf3 {[%clk 0:01:39.8]} 16... a5 {[%clk 0:01:36.5]}
17. Nc3 {[%clk 0:01:33]} 17... a4 {[%clk 0:01:32.8]} 18. Kh1 {[%clk 0:01:27]}
18... g6 {[%clk 0:01:25.7]} 19. Qc2 {[%clk 0:01:13.1]} 19... Rfc8 {[%clk
0:01:15.8]} 20. Qf2 {[%clk 0:01:10.4]} 20... b4 {[%clk 0:01:08.9]} 21. Ne2
{[%clk 0:01:09.4]} 21... c5 {[%clk 0:00:46.3]} 22. dxc5 {[%clk 0:01:08.4]} 22...
Bxc5 {[%clk 0:00:46.5]} 23. Nd4 {[%clk 0:01:03.5]} 23... Bxd4 {[%clk 0:00:41.2]}
24. Bxd4 {[%clk 0:01:02.9]} 24... Qb7 {[%clk 0:00:36.4]} 25. h3 {[%clk 0:01:00]}
25... Rxc1 {[%clk 0:00:35.8]} 26. Rxc1 {[%clk 0:00:58.9]} 26... Rc8 {[%clk
0:00:35.5]} 27. Qd2 {[%clk 0:00:57]} 27... b3 {[%clk 0:00:30.8]} 28. a3 {[%clk
0:00:55.7]} 28... Rc7 {[%clk 0:00:20.4]} 29. Kh2 {[%clk 0:00:45.3]} 29... Qc8
{[%clk 0:00:17.6]} 30. Rc3 {[%clk 0:00:38.5]} 30... Rxc3 {[%clk 0:00:17.3]} 31.
Bxc3 {[%clk 0:00:33.6]} 31... Qc6 {[%clk 0:00:12.9]} 32. Bb4 {[%clk 0:00:27.7]}
32... Qc2 {[%clk 0:00:10.1]} 33. Bxd5 {[%clk 0:00:17.7]} 33... Nf8 {[%clk
0:00:02.1]} 34. Bf3 {[%clk 0:00:10.1]} 34... Qxd2 {[%clk 0:00:02.1]} 35. Bxd2
{[%clk 0:00:10.2]} 35... Bd7 {[%clk 0:00:02.6]} 36. Be3 {[%clk 0:00:08.3]} 36...
Ne6 {[%clk 0:00:03]} 37. Kg1 {[%clk 0:00:08.4]} 37... Kf8 {[%clk 0:00:03.3]} 38.
Kf2 {[%clk 0:00:08.8]} 38... Ke7 {[%clk 0:00:03.8]} 39. Ke2 {[%clk 0:00:09.4]}
39... h6 {[%clk 0:00:04.3]} 40. Kd3 {[%clk 0:00:09.2]} 40... Bb5+ {[%clk
0:00:04.8]} 41. Kc3 {[%clk 0:00:09]} 41... g5 {[%clk 0:00:05.4]} 42. g3 {[%clk
0:00:09.2]} 42... Bf1 {[%clk 0:00:05]} 43. h4 {[%clk 0:00:09.4]} 43... gxh4
{[%clk 0:00:03.2]} 44. gxh4 {[%clk 0:00:10.3]} 44... Bb5 {[%clk 0:00:03.1]} 45.
Kb4 {[%clk 0:00:10.2]} 45... Bd7 {[%clk 0:00:03.7]} 46. Bd5 {[%clk 0:00:08.2]}
46... Nc7 {[%clk 0:00:03.7]} 47. Bc5+ {[%clk 0:00:07.8]} 47... Ke8 {[%clk
0:00:02.4]} 48. Bc4 {[%clk 0:00:07.5]} 48... Bc6 {[%clk 0:00:02.7]} 49. Bd6
{[%clk 0:00:07.1]} 49... Kd7 {[%clk 0:00:02]} 50. Bxc7 {[%clk 0:00:06.9]} 50...
Kxc7 {[%clk 0:00:02.9]} 51. Bb5 {[%clk 0:00:07.7]} 51... Be4 {[%clk 0:00:02.9]}
52. Bxa4 {[%clk 0:00:07.8]} 52... h5 {[%clk 0:00:03.8]} 53. Bxb3 {[%clk
0:00:08.5]} 53... Bc6 {[%clk 0:00:04.7]} 54. Bf7 {[%clk 0:00:08.6]} 54... Kd7
{[%clk 0:00:04.8]} 55. Bxh5 {[%clk 0:00:08.7]} 55... Ke7 {[%clk 0:00:05.7]} 56.
Be2 {[%clk 0:00:08.5]} 56... Be4 {[%clk 0:00:06.6]} 57. Bc4 {[%clk 0:00:08.9]}
57... Kf8 {[%clk 0:00:06.5]} 58. Kc5 {[%clk 0:00:09.8]} 58... Kg7 {[%clk
0:00:07.4]} 59. b4 {[%clk 0:00:10.1]} 59... Bb7 {[%clk 0:00:07.6]} 60. Kd6
{[%clk 0:00:10.2]} 60... Bc8 {[%clk 0:00:06.6]} 61. e6 {[%clk 0:00:10.4]} 61...
Kf6 {[%clk 0:00:05.8]} 62. e7 {[%clk 0:00:10.5]} 62... Bd7 {[%clk 0:00:06.6]}
63. Kxd7 {[%clk 0:00:10]} 63... Kg6 {[%clk 0:00:06.9]} 64. e8=Q+ {[%clk
0:00:10.3]} 64... Kh6 {[%clk 0:00:07.8]} 65. Qe6+ {[%clk 0:00:09.3]} 65... Kh5
{[%clk 0:00:08]} 66. Qxf5+ {[%clk 0:00:09.3]} 66... Kh6 {[%clk 0:00:08.6]} 67.
Qg5+ {[%clk 0:00:09.6]} 67... Kh7 {[%clk 0:00:09.5]} 68. Ke7 {[%clk 0:00:09.9]}
68... Kh8 {[%clk 0:00:09.2]} 69. Kf7 {[%clk 0:00:10.8]} 69... Kh7 {[%clk
0:00:09.5]} 70. Qh5# {[%clk 0:00:11.7]} 1-0

[Event "Early-Titled-Tuesday-Blitz-September-26-2023"]
[Site "Chess.com"]
[Date "2023.09.26"]
[Round "1"]
[White "colegiodemadrid"]
[Black "PeshkaCh"]
[Result "0-1"]
[WhiteElo "2472"]
[BlackElo "2798"]
[TimeControl "180+1"]
[EndTime "8:08:50 PDT"]
[Termination "PeshkaCh won on time"]

1. e4 {[%clk 0:03:00]} 1... e5 {[%clk 0:02:59.3]} 2. Nf3 {[%clk 0:03:00.2]} 2...
Nc6 {[%clk 0:02:56.8]} 3. Bc4 {[%clk 0:02:59.8]} 3... Bc5 {[%clk 0:02:56.5]} 4.
d4 {[%clk 0:02:59]} 4... Bxd4 {[%clk 0:02:45.6]} 5. Nxd4 {[%clk 0:02:59]} 5...
Nxd4 {[%clk 0:02:45.7]} 6. Be3 {[%clk 0:02:59.3]} 6... d6 {[%clk 0:02:38.1]} 7.
Bxd4 {[%clk 0:02:58.8]} 7... exd4 {[%clk 0:02:39]} 8. Qxd4 {[%clk 0:02:59.3]}
8... Qf6 {[%clk 0:02:39.4]} 9. Qxf6 {[%clk 0:02:55.8]} 9... Nxf6 {[%clk
0:02:40.3]} 10. Nc3 {[%clk 0:02:55.6]} 10... Be6 {[%clk 0:02:37.1]} 11. Bb3
{[%clk 0:02:54.4]} 11... O-O-O {[%clk 0:02:31.8]} 12. O-O-O {[%clk 0:02:49.5]}
12... Rhe8 {[%clk 0:02:30.7]} 13. f3 {[%clk 0:02:49.2]} 13... h6 {[%clk
0:02:26.5]} 14. Rd2 {[%clk 0:02:43.2]} 14... a6 {[%clk 0:02:26.1]} 15. Rhd1
{[%clk 0:02:43.1]} 15... Bxb3 {[%clk 0:02:19.7]} 16. axb3 {[%clk 0:02:43.8]}
16... Re5 {[%clk 0:02:20.4]} 17. Nd5 {[%clk 0:02:43.1]} 17... Nxd5 {[%clk
0:02:19.9]} 18. Rxd5 {[%clk 0:02:43.7]} 18... Rde8 {[%clk 0:02:20.6]} 19. c3
{[%clk 0:02:40.8]} 19... Kd7 {[%clk 0:02:17.9]} 20. Kc2 {[%clk 0:02:40.1]} 20...
R8e6 {[%clk 0:02:14.5]} 21. b4 {[%clk 0:02:38.9]} 21... c6 {[%clk 0:02:10.7]}
22. R5d3 {[%clk 0:02:29.8]} 22... f5 {[%clk 0:02:10.3]} 23. exf5 {[%clk
0:02:28.4]} 23... Rxf5 {[%clk 0:02:11.2]} 24. R1d2 {[%clk 0:02:26.7]} 24... Kc7
{[%clk 0:02:07.2]} 25. Rd4 {[%clk 0:02:26]} 25... Rfe5 {[%clk 0:02:03.4]} 26.
Rg4 {[%clk 0:02:21.4]} 26... g6 {[%clk 0:01:58]} 27. h3 {[%clk 0:02:19.8]} 27...
b5 {[%clk 0:01:55.7]} 28. Rf4 {[%clk 0:02:16.7]} 28... Kb6 {[%clk 0:01:53.6]}
29. Rf7 {[%clk 0:02:15.8]} 29... a5 {[%clk 0:01:46.8]} 30. bxa5+ {[%clk
0:02:15.3]} 30... Kxa5 {[%clk 0:01:47.7]} 31. Rh7 {[%clk 0:02:13.1]} 31... h5
{[%clk 0:01:47.2]} 32. Rd7 {[%clk 0:02:10.5]} 32... d5 {[%clk 0:01:47.4]} 33.
Rf7 {[%clk 0:02:08.5]} 33... Kb6 {[%clk 0:01:47.1]} 34. Rf4 {[%clk 0:02:07.9]}
34... Re1 {[%clk 0:01:46.3]} 35. Rfd4 {[%clk 0:02:07.4]} 35... Rg1 {[%clk
0:01:46.1]} 36. Rf4 {[%clk 0:02:03.4]} 36... Kc5 {[%clk 0:01:33.7]} 37. Rf8
{[%clk 0:01:58.7]} 37... b4 {[%clk 0:01:30.5]} 38. cxb4+ {[%clk 0:01:54.9]}
38... Kxb4 {[%clk 0:01:31.4]} 39. Rc8 {[%clk 0:01:53.8]} 39... Kc5 {[%clk
0:01:28.7]} 40. Rf8 {[%clk 0:01:53.8]} 40... Kc4 {[%clk 0:01:17.6]} 41. Rb8
{[%clk 0:01:50.7]} 41... Ree1 {[%clk 0:01:07.7]} 42. b3+ {[%clk 0:01:49.7]}
42... Kc5 {[%clk 0:01:07.9]} 43. Rg8 {[%clk 0:01:49.2]} 43... Re6 {[%clk
0:01:02.9]} 44. Rb8 {[%clk 0:01:44.3]} 44... Ra1 {[%clk 0:00:54.9]} 45. Kd3
{[%clk 0:01:40.2]} 45... Rae1 {[%clk 0:00:50.6]} 46. Rb7 {[%clk 0:01:27.7]}
46... Rc1 {[%clk 0:00:49.2]} 47. Rb8 {[%clk 0:01:07.1]} 47... Rce1 {[%clk
0:00:27.8]} 48. Rb7 {[%clk 0:01:05]} 48... R1e3+ {[%clk 0:00:26.5]} 49. Kc2
{[%clk 0:01:04.8]} 49... Re2 {[%clk 0:00:27.1]} 50. Rb8 {[%clk 0:00:51.2]} 50...
R6e3 {[%clk 0:00:17.1]} 51. Rb7 {[%clk 0:00:47.4]} 51... d4 {[%clk 0:00:11.9]}
52. Rb8 {[%clk 0:00:26.8]} 52... Rc3+ {[%clk 0:00:11.9]} 53. Kd1 {[%clk
0:00:26.3]} 53... Ree3 {[%clk 0:00:11.1]} 54. b4+ {[%clk 0:00:24.8]} 54... Kc4
{[%clk 0:00:11.3]} 55. Rd8 {[%clk 0:00:24.2]} 55... Rcd3 {[%clk 0:00:06.6]} 56.
Rd6 {[%clk 0:00:21.2]} 56... Kb5 {[%clk 0:00:03]} 57. Rxd4 {[%clk 0:00:19.7]}
57... Rxd2+ {[%clk 0:00:02.2]} 58. Kxd2 {[%clk 0:00:19.7]} 58... Rb3 {[%clk
0:00:02.9]} 59. f4 {[%clk 0:00:09.4]} 59... Rb2+ {[%clk 0:00:02.9]} 60. Ke3
{[%clk 0:00:08.5]} 60... Rxg2 {[%clk 0:00:03.8]} 61. Kf3 {[%clk 0:00:08]} 61...
Rg1 {[%clk 0:00:04.1]} 62. Re4 {[%clk 0:00:04.2]} 62... Rb1 {[%clk 0:00:03.5]}
63. Re6 {[%clk 0:00:03.7]} 63... Rb3+ {[%clk 0:00:04.2]} 64. Kg2 {[%clk
0:00:03.9]} 64... Rxb4 {[%clk 0:00:05.1]} 65. Rxg6 {[%clk 0:00:02.6]} 65... Rxf4
{[%clk 0:00:05.7]} 66. Rg5+ {[%clk 0:00:03.5]} 66... c5 {[%clk 0:00:06.3]} 67.
Rxh5 {[%clk 0:00:04.4]} 67... Kb4 {[%clk 0:00:07]} 68. Rh8 {[%clk 0:00:04.1]}
68... c4 {[%clk 0:00:06.8]} 69. Rb8+ {[%clk 0:00:04.9]} 69... Kc3 {[%clk
0:00:06.7]} 70. Kg3 {[%clk 0:00:05.7]} 70... Rf5 {[%clk 0:00:05.9]} 71. Kg4
{[%clk 0:00:05.2]} 71... Rd5 {[%clk 0:00:03.2]} 72. h4 {[%clk 0:00:04.6]} 72...
Kd4 {[%clk 0:00:03.9]} 73. h5 {[%clk 0:00:02.4]} 73... c3 {[%clk 0:00:04.1]} 0-1

[Event "Early-Titled-Tuesday-Blitz-September-26-2023"]
[Site "Chess.com"]
[Date "2023.09.26"]
[Round "1"]
[White "FunnyDuck66"]
[Black "xxysoul6"]
[Result "0-1"]
[WhiteElo "2524"]
[BlackElo "3020"]
[TimeControl "180+1"]
[EndTime "8:08:59 PDT"]
[Termination "xxysoul6 won on time"]

1. d4 {[%clk 0:02:59.9]} 1... e6 {[%clk 0:02:58.4]} 2. c4 {[%clk 0:02:59.8]}
2... d5 {[%clk 0:02:58.2]} 3. Nc3 {[%clk 0:02:59.6]} 3... c5 {[%clk 0:02:58.3]}
4. cxd5 {[%clk 0:02:57]} 4... exd5 {[%clk 0:02:59.2]} 5. Nf3 {[%clk 0:02:56.6]}
5... Nf6 {[%clk 0:02:57.1]} 6. Bg5 {[%clk 0:02:55]} 6... Be6 {[%clk 0:02:57.6]}
7. e3 {[%clk 0:02:55]} 7... c4 {[%clk 0:02:54.6]} 8. Be2 {[%clk 0:02:45.5]} 8...
Be7 {[%clk 0:02:45.5]} 9. O-O {[%clk 0:02:42.8]} 9... O-O {[%clk 0:02:45.1]} 10.
b3 {[%clk 0:02:42.2]} 10... cxb3 {[%clk 0:02:40.5]} 11. Qxb3 {[%clk 0:02:43.1]}
11... b6 {[%clk 0:02:38.5]} 12. Rac1 {[%clk 0:02:42.2]} 12... Nc6 {[%clk
0:02:37.9]} 13. Qa4 {[%clk 0:02:22.8]} 13... Na5 {[%clk 0:02:35.1]} 14. Ne5
{[%clk 0:02:22.8]} 14... h6 {[%clk 0:02:29.4]} 15. Bh4 {[%clk 0:02:22.4]} 15...
Rc8 {[%clk 0:02:24.6]} 16. Ba6 {[%clk 0:02:11.2]} 16... Rc7 {[%clk 0:02:23.2]}
17. Bg3 {[%clk 0:02:10.1]} 17... Bd6 {[%clk 0:02:12.4]} 18. Nb5 {[%clk
0:02:06.6]} 18... Rxc1 {[%clk 0:02:13.3]} 19. Rxc1 {[%clk 0:02:06.5]} 19... Bb8
{[%clk 0:02:13.7]} 20. Bh4 {[%clk 0:01:55.2]} 20... g5 {[%clk 0:02:12]} 21. Bg3
{[%clk 0:01:55.2]} 21... Ne4 {[%clk 0:02:12.4]} 22. Nc3 {[%clk 0:01:46.5]} 22...
Nxg3 {[%clk 0:02:11.6]} 23. hxg3 {[%clk 0:01:45.6]} 23... Bxe5 {[%clk
0:02:11.9]} 24. dxe5 {[%clk 0:01:46.5]} 24... Qc7 {[%clk 0:02:10.9]} 25. Qd4
{[%clk 0:01:38.7]} 25... Qc5 {[%clk 0:02:00.3]} 26. Ne2 {[%clk 0:01:33.2]} 26...
Qa3 {[%clk 0:01:59.5]} 27. Bd3 {[%clk 0:01:25.7]} 27... Nc4 {[%clk 0:01:51.3]}
28. e4 {[%clk 0:01:18.5]} 28... Nxe5 {[%clk 0:01:40.2]} 29. Bb1 {[%clk 0:01:09]}
29... Qd6 {[%clk 0:01:31.1]} 30. Nc3 {[%clk 0:01:07.9]} 30... Rc8 {[%clk
0:01:20.6]} 31. exd5 {[%clk 0:00:51.2]} 31... Qxd5 {[%clk 0:01:19]} 32. Qe3
{[%clk 0:00:14.3]} 32... Ng4 {[%clk 0:01:18.7]} 33. Nxd5 {[%clk 0:00:11.6]}
33... Nxe3 {[%clk 0:01:16]} 34. Rxc8+ {[%clk 0:00:11.7]} 34... Bxc8 {[%clk
0:01:16.9]} 35. Nxe3 {[%clk 0:00:12.4]} 35... h5 {[%clk 0:01:14.6]} 36. Kf1
{[%clk 0:00:12.6]} 36... Kg7 {[%clk 0:01:14.3]} 37. Bf5 {[%clk 0:00:10.6]} 37...
Bb7 {[%clk 0:01:14.1]} 38. Ke2 {[%clk 0:00:09.6]} 38... Kf6 {[%clk 0:01:14.6]}
39. Bd3 {[%clk 0:00:09.8]} 39... Ke5 {[%clk 0:01:14.3]} 40. Bc4 {[%clk
0:00:09.4]} 40... f6 {[%clk 0:01:13.1]} 41. f3 {[%clk 0:00:10]} 41... a6 {[%clk
0:01:12.7]} 42. Bf7 {[%clk 0:00:10.1]} 42... b5 {[%clk 0:01:12.6]} 43. Bxh5
{[%clk 0:00:09.9]} 43... a5 {[%clk 0:01:10.7]} 44. Bf7 {[%clk 0:00:10.3]} 44...
Kd4 {[%clk 0:01:08.3]} 45. Kd2 {[%clk 0:00:10.5]} 45... b4 {[%clk 0:01:07.6]}
46. Bb3 {[%clk 0:00:10.3]} 46... Bc6 {[%clk 0:01:06.4]} 47. Bc2 {[%clk
0:00:10.7]} 47... a4 {[%clk 0:01:05.9]} 48. Nf5+ {[%clk 0:00:11.3]} 48... Kc4
{[%clk 0:01:03.7]} 49. Ne3+ {[%clk 0:00:11.6]} 49... Kd4 {[%clk 0:01:03.5]} 50.
f4 {[%clk 0:00:12.1]} 50... Bb5 {[%clk 0:00:57.7]} 51. fxg5 {[%clk 0:00:11.3]}
51... fxg5 {[%clk 0:00:57.7]} 52. Nf5+ {[%clk 0:00:10.9]} 52... Ke5 {[%clk
0:00:56.8]} 53. Nh6 {[%clk 0:00:07.5]} 53... Bc6 {[%clk 0:00:54.3]} 54. Nf7+
{[%clk 0:00:07.4]} 54... Kf6 {[%clk 0:00:53.4]} 55. Nd6 {[%clk 0:00:07.9]} 55...
Ke5 {[%clk 0:00:53.5]} 56. Nc4+ {[%clk 0:00:08.5]} 56... Kd4 {[%clk 0:00:52.7]}
57. Nb6 {[%clk 0:00:09.1]} 57... a3 {[%clk 0:00:50.8]} 58. Na4 {[%clk
0:00:08.1]} 58... Bd5 {[%clk 0:00:49.8]} 59. Bb1 {[%clk 0:00:04.9]} 59... Bxg2
{[%clk 0:00:49.8]} 60. Nb6 {[%clk 0:00:04.1]} 60... Bc6 {[%clk 0:00:50.4]} 61.
Kc2 {[%clk 0:00:03]} 61... Be4+ {[%clk 0:00:41.3]} 62. Kb3 {[%clk 0:00:03.4]}
62... Bxb1 {[%clk 0:00:40.9]} 63. Kxb4 {[%clk 0:00:04.2]} 63... Bxa2 {[%clk
0:00:40.9]} 64. Kxa3 {[%clk 0:00:05]} 64... Be6 {[%clk 0:00:39.3]} 65. Kb2
{[%clk 0:00:05.7]} 65... g4 {[%clk 0:00:34.8]} 66. Na4 {[%clk 0:00:05.6]} 66...
Ke3 {[%clk 0:00:33.5]} 67. Nc5 {[%clk 0:00:05.4]} 67... Bf5 {[%clk 0:00:32]} 68.
Kc3 {[%clk 0:00:05.3]} 68... Kf3 {[%clk 0:00:32.5]} 69. Nb7 {[%clk 0:00:04.8]}
69... Kxg3 {[%clk 0:00:32.4]} 70. Nd6 {[%clk 0:00:05.5]} 70... Bg6 {[%clk
0:00:32.6]} 71. Kd2 {[%clk 0:00:03.7]} 71... Kf2 {[%clk 0:00:28.1]} 72. Nc4
{[%clk 0:00:03.5]} 72... g3 {[%clk 0:00:27.8]} 73. Ne3 {[%clk 0:00:04.4]} 73...
Bf5 {[%clk 0:00:27.1]} 74. Nd1+ {[%clk 0:00:03.5]} 74... Kf3 {[%clk 0:00:27.3]}
75. Ne3 {[%clk 0:00:03.9]} 75... Be4 {[%clk 0:00:26]} 76. Nc4 {[%clk 0:00:02]}
76... g2 {[%clk 0:00:25.6]} 77. Ne5+ {[%clk 0:00:02.9]} 77... Kf4 {[%clk
0:00:25.3]} 78. Nd3+ {[%clk 0:00:01.9]} 78... Bxd3 {[%clk 0:00:25.3]} 0-1